fUST/lending_fUST_20240627
["ID","MTS","AMOUNT","RATE_DAILY","PERIOD"]
[330485780,1719495610337,300.12051075,0.000225,30]
[330485781,1719495626343,300.12051075,0.000225,30]
[330485783,1719495734927,4453.95695625,0.00014999,2]
[330485784,1719495746361,156.3627861,0.000225,30]
[330485785,1719495778768,2116.05892571,0.00014999,2]
[330485786,1719495833768,4760.0,0.000225,30]
[330485787,1719495834673,156.3627861,0.000225,30]
[330485788,1719495890897,156.3627861,0.0001818,30]
[330485789,1719495943052,1044.99950462,0.00014999,2]
[330485790,1719495956341,1688.21117984,0.00014999,2]
[330485791,1719496003588,156.3627861,0.00014999,30]
[330485792,1719496018376,156.3627861,0.00014999,30]
[330485793,1719496025536,16224.55368214,0.00014999,2]
[330485794,1719496070879,156.3627861,0.0001818,30]
[330485795,1719496104529,11993.89073944,0.00014999,2]
[330485796,1719496104552,4230.6629427,0.00014999,2]
[330485797,1719496120956,156.3627861,0.00022036,30]
[330485872,1719496238216,-155.50683823,0.00018899,2]
[330485873,1719496238226,-190.77408721,0.00018899,2]
[330485874,1719496238235,-4306.9164544,0.00020855,2]
[330485876,1719496238245,-12314.6536599,0.00020967,2]
[330485877,1719496238256,-161.898459,0.00021014,2]
[330485878,1719496238265,-188.0135848,0.00021036,2]
[330485881,1719496238278,-687.9864152,0.00021036,2]
[330485882,1719496238288,-299.19286096,0.00021095,2]
[330485883,1719496238298,-10.74345856,0.00021096,2]
[330485884,1719496238310,-375.97728944,0.00021096,2]
[330485885,1719496238320,-159.76299522,0.0002199,2]
[330485886,1719496238330,-158.464227,0.00022,7]
[330485887,1719496238340,-2297.00134138,0.00022036,2]
[330485889,1719496238351,-9003.00926753,0.00022036,2]
[330485898,1719496238568,-1058.862999,0.00022036,2]
[330486037,1719496243569,-3865.68007423,0.00022036,2]
[330486041,1719496243579,-151.0,0.0002209,7]
[330486045,1719496243589,-176.58256,0.0002209,7]
[330486046,1719496243598,-154.82556,0.0002209,7]
[330486049,1719496243607,-656.134626,0.0002209,7]
[330486052,1719496243616,-656.134626,0.0002209,7]
[330486055,1719496243628,-188.549664,0.0002209,7]
[330486057,1719496243642,-188.549664,0.0002209,7]
[330486059,1719496243651,-151.0,0.0002209,7]
[330486061,1719496243660,-151.0,0.0002209,7]
[330486062,1719496243669,-151.0,0.0002209,7]
[330486078,1719496243812,-151.0,0.0002209,7]
[330486080,1719496243824,-498.811989,0.0002209,7]
[330486082,1719496243833,-498.811989,0.0002209,7]
[330486084,1719496243842,-159.76299522,0.0002209,2]
[330486086,1719496243852,-151.0,0.0002209,7]
[330486088,1719496243861,-153.363127,0.0002209,7]
[330486090,1719496243871,-151.0,0.0002209,7]
[330486092,1719496243880,-151.0,0.0002209,7]
[330486094,1719496243889,-190.048605,0.0002209,7]
[330486096,1719496243898,-190.048605,0.0002209,7]
[330486098,1719496243908,-190.048605,0.0002209,7]
[330486100,1719496243917,-190.048605,0.0002209,7]
[330486102,1719496243926,-1923.70024409,0.0002218,7]
[330486104,1719496243935,-151.0,0.0002218,7]
[330486106,1719496243944,-1951.7146,0.0002218,7]
[330486108,1719496243953,-1951.7146,0.0002218,7]
[330486110,1719496243962,-151.0,0.0002218,7]
[330486112,1719496243971,-151.0,0.0002218,7]
[330486114,1719496243981,-656.134626,0.0002218,7]
[330486116,1719496243990,-656.134626,0.0002218,7]
[330486118,1719496243999,-656.134626,0.0002218,7]
[330486120,1719496244008,-656.134626,0.0002218,7]
[330486121,1719496244018,-188.549664,0.0002218,7]
[330486123,1719496244029,-188.549664,0.0002218,7]
[330486125,1719496244038,-188.549664,0.0002218,7]
[330486127,1719496244046,-188.549664,0.0002218,7]
[330486129,1719496244056,-40650.92731733,0.0002218,7]
[330486131,1719496244065,-151.0,0.0002218,7]
[330486133,1719496244074,-151.0,0.0002218,7]
[330486135,1719496244083,-151.0,0.0002218,7]
[330486137,1719496244093,-151.0,0.0002218,7]
[330486139,1719496244103,-151.0,0.0002218,7]
[330486141,1719496244112,-151.0,0.0002218,7]
[330486143,1719496244121,-151.0,0.0002218,7]
[330486145,1719496244131,-498.811989,0.0002218,7]
[330486147,1719496244140,-151.0,0.0002218,7]
[330486149,1719496244150,-498.811989,0.0002218,7]
[330486151,1719496244159,-279.073399,0.0002218,7]
[330486153,1719496244168,-498.811989,0.0002218,7]
[330486155,1719496244177,-498.811989,0.0002218,7]
[330486157,1719496244187,-151.0,0.0002218,7]
[330486159,1719496244196,-151.0,0.0002218,7]
[330486161,1719496244206,-190.048605,0.0002218,7]
[330486162,1719496244215,-190.048605,0.0002218,7]
[330486164,1719496244224,-190.048605,0.0002218,7]
[330486166,1719496244234,-190.048605,0.0002218,7]
[330486168,1719496244244,-190.048605,0.0002218,7]
[330486170,1719496244253,-190.048605,0.0002218,7]
[330486172,1719496244262,-190.048605,0.0002218,7]
[330486174,1719496244271,-190.048605,0.0002218,7]
[330486176,1719496244281,-190.048605,0.0002218,7]
[330486178,1719496244290,-190.048605,0.0002218,7]
[330486180,1719496244300,-190.048605,0.0002218,7]
[330486182,1719496244309,-190.048605,0.0002218,7]
[330486184,1719496244319,-190.048605,0.0002218,7]
[330486186,1719496244328,-190.048605,0.0002218,7]
[330486188,1719496244337,-119271.23453794,0.0002218,2]
[330486522,1719496501507,156.3627861,0.0002218,30]
[330486523,1719496527946,264.21941091,0.00014999,2]
[330486524,1719496549911,156.3627861,0.0001818,30]
[330486525,1719496572517,16224.55368214,0.00014999,2]
[330486526,1719496575930,1151.01337542,0.00014999,2]
[330486527,1719496609920,297.14782549,0.0001818,30]
[330486531,1719496817276,-2000.0,0.00022199,10]
[330486532,1719496817302,-2000.0,0.00022199,10]
[330486533,1719496817329,-2000.0,0.00022199,10]
[330486534,1719496817357,-892.96008953,0.00022199,10]
[330486535,1719496829443,-42303.3790338,0.00022159,7]
[330486536,1719496829469,-151.0,0.0002218,7]
[330486537,1719496829497,-151.0,0.0002218,7]
[330486538,1719496829523,-151.0,0.0002218,7]
[330486539,1719496829549,-151.0,0.0002218,7]
[330486540,1719496829576,-151.0,0.0002218,7]
[330486541,1719496829604,-272.583156,0.0002218,7]
[330486542,1719496829631,-151.0,0.0002218,7]
[330486543,1719496829660,-151.0,0.0002218,7]
[330486544,1719496829687,-1756.54314,0.0002218,7]
[330486545,1719496829713,-1756.54314,0.0002218,7]
[330486546,1719496829740,-1756.54314,0.0002218,7]
[330486547,1719496829767,-1756.54314,0.0002218,7]
[330486548,1719496829793,-151.0,0.0002218,7]
[330486549,1719496829820,-151.0,0.0002218,7]
[330486550,1719496829848,-151.0,0.0002218,7]
[330486551,1719496829877,-151.0,0.0002218,7]
[330486552,1719496829908,-179.02542,0.0002218,7]
[330486553,1719496829938,-151.376653,0.0002218,7]
[330486554,1719496829966,-151.0,0.0002218,7]
[330486555,1719496829991,-151.0,0.0002218,7]
[330486556,1719496830018,-151.0,0.0002218,7]
[330486557,1719496830167,-349.168392,0.0002218,7]
[330486558,1719496830194,-349.168392,0.0002218,7]
[330486559,1719496830223,-349.168392,0.0002218,7]
[330486560,1719496830251,-349.168392,0.0002218,7]
[330486561,1719496830278,-459.294238,0.0002218,7]
[330486562,1719496830304,-459.294238,0.0002218,7]
[330486563,1719496830330,-151.0,0.0002218,7]
[330486564,1719496830358,-151.0,0.0002218,7]
[330486565,1719496830385,-151.0,0.0002218,7]
[330486566,1719496830416,-250.469061,0.0002219,7]
[330486567,1719496830445,-151.0,0.0002219,7]
[330486568,1719496830473,-226.216851,0.0002219,7]
[330486569,1719496830500,-152.788508,0.0002219,7]
[330486570,1719496830527,-152.798368,0.0002219,7]
[330486571,1719496830554,-151.0,0.0002219,7]
[330486572,1719496830582,-1756.54314,0.0002219,7]
[330486573,1719496830609,-1756.54314,0.0002219,7]
[330486574,1719496830637,-151.0,0.0002219,7]
[330486575,1719496830671,-151.0,0.0002219,7]
[330486576,1719496830699,-151.0,0.0002219,7]
[330486577,1719496830728,-349.168392,0.0002219,7]
[330486578,1719496830757,-349.168392,0.0002219,7]
[330486579,1719496830784,-459.294238,0.0002219,7]
[330486580,1719496830812,-459.294238,0.0002219,7]
[330486581,1719496830840,-459.294238,0.0002219,7]
[330486582,1719496830872,-459.294238,0.0002219,7]
[330486583,1719496830903,-151.0,0.0002219,7]
[330486584,1719496830931,-229.097218,0.0002219,7]
[330486585,1719496830958,-151.0,0.0002219,7]
[330486586,1719496830987,-151.0,0.0002219,7]
[330486587,1719496831015,-151.0,0.0002219,7]
[330486588,1719496831043,-1756.54314,0.00022199,7]
[330486589,1719496831072,-1756.54314,0.00022199,7]
[330486590,1719496831100,-151.0,0.00022199,7]
[330486591,1719496831129,-151.0,0.00022199,7]
[330486592,1719496831160,-173.03691,0.00022199,7]
[330486593,1719496831188,-349.168392,0.00022199,7]
[330486594,1719496831217,-349.168392,0.00022199,7]
[330486595,1719496831245,-151.0,0.000222,7]
[330486596,1719496831272,-240.796526,0.000222,7]
[330486597,1719496831301,-1756.54314,0.000222,7]
[330486598,1719496831331,-1756.54314,0.000222,7]
[330486599,1719496831360,-151.0,0.000222,7]
[330486600,1719496831389,-151.0,0.000222,7]
[330486601,1719496831420,-349.168392,0.000222,7]
[330486602,1719496831453,-349.168392,0.000222,7]
[330486603,1719496831481,-281.59145767,0.000222,7]
[330488976,1719497158373,2692.07,0.00015,2]
[330488977,1719497173436,490.17071359,0.00014999,2]
[330488978,1719497179710,759.18406276,0.00014999,2]
[330488979,1719497267600,6700.26330211,0.00014999,2]
[330489111,1719497438725,-190.77408721,0.00018798,2]
[330489112,1719497438736,-1047.73949287,0.00020099,2]
[330489113,1719497438745,-166.78078368,0.00020317,2]
[330489114,1719497438757,-1636.92510525,0.00020317,2]
[330489198,1719497440755,-5883.54630007,0.00020317,2]
[330489199,1719497440764,-250.0,0.00020348,2]
[330489201,1719497440774,-3000.0,0.00020395,2]
[330489203,1719497440783,-163.724839,0.00020517,2]
[330489205,1719497440792,-300.0,0.00020672,2]
[330489207,1719497440802,-300.0,0.00020672,2]
[330489209,1719497440811,-161.898459,0.00021014,2]
[330489210,1719497440820,-876.0,0.00021037,2]
[330489212,1719497440829,-367.38471,0.00021096,2]
[330489215,1719497440842,-296.0782134,0.00021278,2]
[330489216,1719497440853,-4424.10400928,0.00021704,2]
[330489218,1719497440863,-831.72542217,0.0002199,2]
[330489220,1719497440873,-500.0,0.00022,2]
[330489222,1719497440883,-1363.07515682,0.00022,2]
[330489224,1719497440892,-1363.0751568,0.00022023,2]
[330489226,1719497440902,-1363.0751568,0.00022045,2]
[330489228,1719497440912,-1363.0751568,0.00022068,2]
[330489230,1719497440922,-10848.69194729,0.00022069,2]
[330489232,1719497440932,-1363.0751568,0.0002209,2]
[330489233,1719497440942,-1463.91381205,0.000221,3]
[330489235,1719497440956,-250.43917805,0.000221,3]
[330489238,1719497440968,-1203.63874975,0.000221,3]
[330489240,1719497441794,-252.17895056,0.000221,3]
[330489253,1719497444384,-29384.80731125,0.000221,3]
[330489254,1719497444394,-308.3338013,0.000221,2]
[330489255,1719497444403,-415.75,0.0002217,3]
[330489256,1719497444412,-207.87,0.0002217,3]
[330489257,1719497444422,-500.0,0.00022179,2]
[330489258,1719497444432,-500.0,0.00022179,2]
[330489259,1719497444442,-500.0,0.00022179,2]
[330489260,1719497444453,-500.0,0.00022179,2]
[330489261,1719497444466,-460.34036812,0.00022179,2]
[330489262,1719497444475,-500.0,0.00022179,2]
[330489263,1719497444484,-500.0,0.00022179,2]
[330489264,1719497444493,-21151.6895169,0.0002218,7]
[330489265,1719497444502,-2549.46517155,0.0002218,7]
[330489266,1719497444511,-393385.11702316,0.0002218,2]
[330489277,1719497448479,-383.43555123,0.0002217,3]
[330489278,1719497448491,-240.22444877,0.0002217,3]
[330489280,1719497448500,-1177.0184522,0.0002218,2]
[330489283,1719497448511,-1615.55854608,0.0002218,2]
[330489294,1719497594329,468.22147694,0.00014999,4]
[330489295,1719497657044,6084.77562437,0.00014999,2]
[330489296,1719497659783,16220.66177805,0.00014999,2]
[330489297,1719497675634,161.47923894,0.00014999,2]
[330489300,1719497894295,372.56793987,0.00014999,2]
[330489302,1719498037166,606.02177992,0.00014999,2]
[330489303,1719498098907,154.79103211,0.00014999,2]
[330489304,1719498144078,4382.30672444,0.00014999,2]
[330489305,1719498154140,16224.55368214,0.00014999,2]
[330489306,1719498157737,168.65686653,0.0002,30]
[330489307,1719498243908,154.79103211,0.00014999,2]
[330489310,1719498273906,154.79103211,0.00014999,2]
[330489311,1719498338189,-619.42287717,0.0001818,2]
[330489312,1719498338209,-747.56719203,0.00019999,2]
[330489313,1719498338228,-300.0,0.00019999,2]
[330489314,1719498338248,-154.79103211,0.0002,2]
[330489315,1719498338270,-698.49299525,0.0002008,2]
[330489316,1719498338289,-161.898459,0.00021014,2]
[330489317,1719498338308,-5397.42169468,0.00021788,2]
[330489318,1719498338327,-736.19771568,0.000221,2]
[330489319,1719498338351,-212.62,0.0002218,3]
[330489320,1719498338372,-262.31,0.0002218,3]
[330489321,1719498338392,-1398.55,0.0002218,3]
[330489322,1719498338411,-699.27,0.0002218,3]
[330489323,1719498338433,-476.14,0.0002218,3]
[330489324,1719498338452,-238.07,0.0002218,3]
[330489325,1719498338470,-714.24,0.0002218,3]
[330489326,1719498338488,-500.0,0.00022189,2]
[330489327,1719498338507,-490.65106447,0.00022189,2]
[330489328,1719498338526,-500.0,0.00022189,2]
[330489329,1719498338546,-538.10211044,0.00022189,2]
[330489330,1719498338566,-10575.84475845,0.0002219,7]
[330489331,1719498338585,-104396.83059672,0.0002219,2]
[330489332,1719498340650,16224.55368214,0.00014999,2]
[330489334,1719498395113,-302.56273446,0.0001818,2]
[330489335,1719498395134,-4515.71987813,0.0001818,2]
[330489336,1719498395154,-349.015474,0.00021096,2]
[330489337,1719498395175,-340.07,0.0002218,3]
[330489338,1719498395197,-519.55,0.0002218,3]
[330489339,1719498395221,-2944.98882214,0.0002219,2]
[330489340,1719498428201,-465.66199683,0.0002009,2]
[330489341,1719498428224,-196.8,0.0002218,3]
[330489342,1719498428245,-164.0,0.0002218,3]
[330489343,1719498428276,-203879.76860714,0.0002219,2]
[330489344,1719498428301,-116143.25331061,0.000222,2]
[330489345,1719498428323,-158.57138068,0.00022728,2]
[330489346,1719498428343,-163.724839,0.0002287,2]
[330489347,1719498428364,-500.000001,0.00023,2]
[330489348,1719498428388,-594.0,0.00023,2]
[330489349,1719498428410,-151.0,0.00023433,3]
[330489350,1719498428433,-155.0,0.0002347,6]
[330489351,1719498428454,-1000.0,0.00023515,2]
[330489352,1719498428477,-2797.1,0.0002355,3]
[330489353,1719498428499,-1398.54,0.0002355,3]
[330489354,1719498428520,-952.28,0.0002355,3]
[330489355,1719498428542,-476.14,0.0002355,3]
[330489356,1719498428565,-150.595208,0.0002375,2]
[330489357,1719498428587,-783.874307,0.0002375,2]
[330489358,1719498428607,-648.503769,0.0002375,2]
[330489359,1719498428627,-152.481495,0.0002375,2]
[330489360,1719498428649,-153.0,0.00023908,2]
[330489361,1719498428671,-151.0,0.00024001,4]
[330489362,1719498428691,-1058.7445849,0.00024038,2]
[330489363,1719498428712,-160.0615789,0.00024045,2]
[330489364,1719498428732,-783.874307,0.00024047,2]
[330489365,1719498428753,-648.503769,0.00024047,2]
[330489366,1719498428775,-231.61307245,0.00024105,2]
[330489367,1719498428795,-231.61307245,0.00024125,2]
[330489368,1719498428816,-2000.0,0.00024134,2]
[330489369,1719498428836,-887.35825375,0.00024192,2]
[330489370,1719498428856,-152.04592602,0.00024192,2]
[330489371,1719498428876,-1058.7445849,0.00024235,2]
[330489372,1719498428896,-231.61307245,0.00024283,2]
[330489373,1719498428917,-231.61307245,0.00024336,2]
[330489374,1719498428937,-783.874307,0.00024344,2]
[330489375,1719498428957,-648.503769,0.00024344,2]
[330489376,1719498428977,-159.50123805,0.00024417,2]
[330489377,1719498428999,-1058.7445849,0.00024517,2]
[330489378,1719498429020,-887.35825375,0.00024543,2]
[330489379,1719498429044,-887.35825375,0.00024566,2]
[330489380,1719498429065,-151.0,0.00024569,4]
[330489381,1719498429085,-151.0,0.00024569,4]
[330489382,1719498429106,-2000.0,0.000246,2]
[330489383,1719498429127,-151.29993676,0.00024628,2]
[330489384,1719498429152,-887.35825375,0.00024631,2]
[330489385,1719498429175,-783.874307,0.0002464,2]
[330489386,1719498429197,-648.503769,0.0002464,2]
[330489387,1719498429223,-500.0,0.00024658,2]
[330489388,1719498429243,-2000.0,0.000248,3]
[330489389,1719498429264,-2000.0,0.000248,5]
[330489390,1719498429284,-783.874307,0.00024937,2]
[330489391,1719498429304,-648.503769,0.00024937,2]
[330489392,1719498429325,-152.481495,0.00024937,2]
[330489393,1719498429348,-153.0,0.00024959,2]
[330489394,1719498429369,-887.35825375,0.00024969,2]
[330489395,1719498429397,-103740.529342,0.0002499,2]
[330489396,1719498429418,-3000.0,0.00025,2]
[330489397,1719498429439,-887.35825375,0.0002502,2]
[330489398,1719498429460,-887.35825375,0.00025063,2]
[330489399,1719498429484,-465.66199683,0.0002509,2]
[330489400,1719498429503,-1058.7445849,0.00025111,2]
[330489401,1719498429524,-151.0,0.00025137,4]
[330489402,1719498429545,-151.0,0.00025137,4]
[330489403,1719498429565,-159.50123805,0.00025155,2]
[330489404,1719498429585,-1058.7445849,0.00025349,2]
[330489405,1719498429606,-1058.7445849,0.0002536,2]
[330489406,1719498429628,-231.61307245,0.00025364,2]
[330489407,1719498429649,-887.35825375,0.00025485,2]
[330489408,1719498429670,-231.61307245,0.00025486,2]
[330489409,1719498429690,-1058.7445849,0.00025526,2]
[330489410,1719498429710,-231.61307245,0.00025613,2]
[330489411,1719498429730,-156.19723366,0.00025625,2]
[330489412,1719498429751,-151.0,0.00025705,5]
[330489413,1719498429772,-151.0,0.00025705,5]
[330489414,1719498429792,-156.19723366,0.00025707,2]
[330489415,1719498429812,-1058.7445849,0.00025844,2]
[330489416,1719498429833,-1058.7445849,0.0002588,2]
[330489417,1719498430008,-231.61307245,0.00025976,2]
[330489418,1719498430030,-887.35825375,0.00026004,2]
[330489419,1719498430050,-159.50123805,0.00026114,2]
[330489420,1719498430070,-887.35825375,0.00026184,2]
[330489421,1719498430090,-1058.7445849,0.00026195,2]
[330489422,1719498430111,-159.50123805,0.00026219,2]
[330489423,1719498430132,-159.50123805,0.00026229,2]
[330489424,1719498430154,-159.50123805,0.00026236,2]
[330489425,1719498430179,-151.0,0.00026272,5]
[330489426,1719498430199,-151.0,0.00026272,5]
[330489427,1719498430222,-887.35825375,0.00026287,2]
[330489428,1719498430242,-887.35825375,0.000263,2]
[330489429,1719498430262,-152.04592602,0.00026336,2]
[330489430,1719498430282,-307.426394,0.00026342,7]
[330489431,1719498430303,-307.426394,0.00026342,7]
[330489432,1719498430323,-1058.7445849,0.00026356,2]
[330489433,1719498430343,-736.19771565,0.00026365,2]
[330489434,1719498430363,-887.35825375,0.00026409,2]
[330489435,1719498430389,-231.61307245,0.00026425,2]
[330489436,1719498430410,-1058.7445849,0.00026434,2]
[330489437,1719498430432,-231.61307245,0.00026464,2]
[330489438,1719498430452,-1058.7445849,0.00026571,2]
[330489439,1719498430478,-209.924961,0.00026578,7]
[330489440,1719498430498,-200.029341,0.00026578,7]
[330489441,1719498430519,-307.426394,0.00026578,7]
[330489442,1719498430540,-307.426394,0.00026578,7]
[330489443,1719498430563,-154.84,0.000266,31]
[330489444,1719498430583,-8874.3000661,0.000267,2]
[330489445,1719498430603,-1058.7445849,0.00026769,2]
[330489446,1719498430624,-887.35825375,0.00026804,2]
[330489447,1719498430645,-231.61307245,0.00026813,2]
[330489448,1719498430666,-169.331084,0.00026826,2]
[330489449,1719498430686,-173.350392,0.00026826,2]
[330489450,1719498430706,-214.70992,0.00026826,2]
[330489451,1719498430728,-290.894388,0.00026826,2]
[330489452,1719498430748,-151.0,0.0002684,5]
[330489453,1719498430769,-151.0,0.0002684,5]
[330489454,1719498430789,-287.11909617,0.00026884,2]
[330489455,1719498430809,-231.61307245,0.00026931,2]
[330489456,1719498430833,-887.35825375,0.00026944,2]
[330489457,1719498430854,-887.35825375,0.00026981,2]
[330489458,1719498430874,-231.61307245,0.00027006,2]
[330489459,1719498430895,-1058.7445849,0.00027058,2]
[330489460,1719498430916,-231.61307245,0.00027067,2]
[330489461,1719498430936,-231.61307245,0.00027097,2]
[330489462,1719498430958,-349.015474,0.00027195,2]
[330489463,1719498430977,-2000.0,0.000272,6]
[330489464,1719498430997,-2000.0,0.000272,10]
[330489465,1719498431018,-231.61307245,0.00027233,2]
[330489466,1719498431039,-160.0615789,0.00027263,2]
[330489467,1719498431062,-231.61307245,0.00027276,2]
[330489468,1719498431082,-1298.0,0.00027289,8]
[330489469,1719498431103,-159.50123805,0.000273,2]
[330489470,1719498431123,-887.35825375,0.00027338,2]
[330489471,1719498431144,-160.0615789,0.00027371,2]
[330489472,1719498431164,-174.94766048,0.000274,2]
[330489473,1719498432518,-160.94060234,0.00027403,5]
[330489474,1719498432545,-887.35825375,0.00027406,2]
[330489475,1719498432568,-151.0,0.00027408,6]
[330489476,1719498432589,-151.0,0.00027408,6]
[330489477,1719498432609,-1281.16930616,0.00027408,2]
[330489478,1719498432628,-1058.7445849,0.00027488,2]
[330489479,1719498432651,-160.0615789,0.00027498,2]
[330489480,1719498432670,-909.25491549,0.000275,30]
[330489481,1719498432689,-1058.7445849,0.000275,2]
[330489482,1719498432710,-231.61307245,0.00027508,2]
[330489483,1719498432729,-191.57422807,0.00027586,2]
[330489484,1719498432748,-887.35825375,0.00027611,2]
[330489485,1719498432767,-159.50123805,0.00027623,2]
[330489486,1719498432787,-1058.7445849,0.00027646,2]
[330489487,1719498432806,-1058.7445849,0.0002768,2]
[330489488,1719498432826,-159.50123805,0.00027683,2]
[330489489,1719498432845,-1058.7445849,0.00027689,2]
[330489490,1719498432865,-159.50123805,0.00027774,2]
[330489491,1719498432884,-2546.84600494,0.0002788,7]
[330489492,1719498432904,-887.35825375,0.00027969,2]
[330489493,1719498432923,-1638.14823295,0.0002799,2]
[330489494,1719498432942,-267.99418964,0.00028,2]
[330489495,1719498432961,-887.35825375,0.00028029,2]
[330489496,1719498432980,-887.35825375,0.0002807,2]
[330489497,1719498432999,-307.426394,0.00028156,7]
[330489498,1719498433020,-307.426394,0.00028156,7]
[330489499,1719498433039,-214.70992,0.00028167,2]
[330489500,1719498433059,-1058.7445849,0.00028174,2]
[330489501,1719498433078,-159.50123805,0.00028215,2]
[330489502,1719498433098,-887.35825375,0.00028275,2]
[330489503,1719498433120,-159.50123805,0.00028342,2]
[330489504,1719498433144,-154.84,0.000284,31]
[330489505,1719498433166,-1058.7445849,0.00028426,2]
[330489506,1719498433186,-1058.7445849,0.00028448,2]
[330489507,1719498433206,-887.35825375,0.00028501,2]
[330489508,1719498433230,-231.61307245,0.00028509,2]
[330489509,1719498433250,-307.426394,0.00028519,7]
[330489510,1719498433269,-307.426394,0.00028519,7]
[330489511,1719498433289,-231.61307245,0.00028527,2]
[330489512,1719498433308,-1058.7445849,0.0002854,2]
[330489513,1719498433328,-878.27157,0.0002854,7]
[330489514,1719498433347,-878.27157,0.0002854,7]
[330489515,1719498433367,-174.584196,0.0002854,7]
[330489516,1719498433389,-151.0,0.0002854,7]
[330489517,1719498433412,-223.695292,0.0002854,7]
[330489518,1719498433440,-174.584196,0.0002854,7]
[330489519,1719498433460,-6449.33553457,0.000286,2]
[330489520,1719498433481,-1274.73258578,0.00028606,7]
[330489521,1719498433500,-1058.7445849,0.00028606,2]
[330489522,1719498433520,-231.61307245,0.00028634,2]
[330489523,1719498433539,-887.35825375,0.00028656,2]
[330489524,1719498433559,-1058.7445849,0.00028705,2]
[330489525,1719498433580,-156.19723366,0.0002877,2]
[330489526,1719498433600,-200.0,0.00028774,120]
[330489527,1719498433731,-887.35825375,0.00028828,2]
[330489528,1719498433754,-231.61307245,0.00028852,2]
[330489529,1719498433774,-231.61307245,0.00028941,2]
[330489530,1719498433793,-887.35825375,0.00028952,2]
[330489531,1719498433814,-231.61307245,0.00028993,2]
[330489532,1719498433837,-200.0,0.00029012,120]
[330489533,1719498433857,-1058.7445849,0.00029025,2]
[330489534,1719498433877,-159.50123805,0.00029032,2]
[330489535,1719498433897,-273.01100456,0.0002905,2]
[330489536,1719498433917,-156.19723366,0.00029079,2]
[330489537,1719498433936,-231.61307245,0.00029096,2]
[330489538,1719498433955,-159.50123805,0.00029107,2]
[330489539,1719498433976,-231.61307245,0.00029172,2]
[330489540,1719498433996,-231.61307245,0.00029201,2]
[330489541,1719498434017,-200.0,0.00029216,120]
[330489542,1719498434038,-231.61307245,0.00029338,2]
[330489543,1719498434060,-156.19723366,0.00029381,2]
[330489544,1719498434081,-887.35825375,0.00029407,2]
[330489545,1719498434101,-1058.7445849,0.00029569,2]
[330489546,1719498434121,-887.35825375,0.0002957,2]
[330489547,1719498434142,-160.0615789,0.00029585,2]
[330489548,1719498434162,-1058.7445849,0.00029597,2]
[330489549,1719498434182,-887.35825388,0.00029627,2]
[330489550,1719498434201,-160.0615789,0.0002969,2]
[330489551,1719498434224,-293.98739066,0.000297,120]
[330489552,1719498434244,-231.61307245,0.0002971,2]
[330489553,1719498434264,-156.1972337,0.00029744,2]
[330489554,1719498434284,-231.61307251,0.00029863,2]
[330489555,1719498434303,-160.06157893,0.00029895,2]
[330489556,1719498434323,-151.0,0.000299,7]
[330489557,1719498434343,-151.0,0.000299,7]
[330489558,1719498434363,-307.426394,0.000299,7]
[330489559,1719498434386,-307.426394,0.000299,7]
[330489560,1719498434407,-878.27157,0.000299,7]
[330489561,1719498434427,-878.27157,0.000299,7]
[330489562,1719498434448,-174.584196,0.000299,7]
[330489563,1719498434469,-151.0,0.000299,7]
[330489564,1719498434488,-174.584196,0.000299,7]
[330489565,1719498434508,-159.50123815,0.00029914,2]
[330489566,1719498434527,-151.0,0.00029952,7]
[330489567,1719498434546,-151.0,0.00029952,7]
[330489568,1719498434566,-307.426394,0.00029952,7]
[330489569,1719498434586,-307.426394,0.00029952,7]
[330489570,1719498434606,-878.27157,0.00029952,7]
[330489571,1719498434626,-878.27157,0.00029952,7]